bitfinex/quotes_ETHUSD_20260226
["timestamp","ask_amount","ask_price","bid_price","bid_amount"]
[1772068042410,0.004,2065.0,2064.2,4.84440485]
[1772068043505,0.004,2065.0,2064.1,1.555]
[1772068043704,0.61723175,2064.9,2063.8,1.21135768]
[1772068043909,0.61723175,2064.8,2063.8,1.21135768]
[1772068045208,0.61723175,2064.8,2063.9,0.56243011]
[1772068045707,1.21082966,2064.7,2064.0,1.21124031]
[1772068045930,1.76740377,2064.7,2063.9,0.56243011]
[1772068046210,1.76740377,2064.7,2063.7,0.0011]
[1772068046211,0.55257411,2064.5,2063.7,0.0011]
[1772068047506,0.55257411,2064.5,2063.7,1.21251133]
[1772068047707,0.55257411,2064.5,2063.7,0.0011]
[1772068047892,1.76757972,2064.4,2063.7,0.0011]
[1772068048094,0.55257411,2064.3,2063.5,0.0011]
[1772068048407,2.73800561,2064.4,2063.5,0.0011]
[1772068048408,1.527,2064.4,2063.6,0.53995686]
[1772068048915,1.523,2064.4,2063.6,0.53995686]
[1772068049785,1.523,2064.4,2063.8,0.53995686]
[1772068049786,0.004,2064.3,2063.8,0.53995686]
[1772068049981,1.523,2064.4,2063.9,0.001]
[1772068050186,1.523,2064.4,2063.9,0.54095686]
[1772068050408,1.21081265,2064.8,2063.9,0.54095686]
[1772068050712,2.73275556,2064.9,2063.9,0.54095686]
[1772068051914,3.30639799,2064.9,2064.0,1.21124031]
[1772068052320,1.45217425,2065.9,2064.0,1.21124031]
[1772068052321,0.57364243,2065.7,2064.5,0.5561462]
[1772068052520,0.001,2065.8,2064.8,2.26930592]
[1772068052694,1.21118504,2065.8,2065.0,2.26930592]
[1772068052894,1.21118504,2065.8,2064.7,0.5561462]
[1772068052895,1.78482747,2065.8,2064.7,0.5561462]
[1772068053218,0.57364243,2065.7,2064.7,0.5561462]
[1772068053519,1.21119081,2065.8,2064.7,0.5561462]
[1772068053727,1.78483324,2065.8,2064.7,0.5561462]
[1772068054015,1.78483324,2065.8,2064.8,1.21077101]
[1772068054583,1.21119081,2065.8,2064.9,0.5561462]
[1772068054786,1.21119081,2065.8,2065.2,2.26930592]
[1772068054787,0.001,2065.8,2065.2,2.26930592]
[1772068055187,0.001,2065.8,2064.9,0.5561462]
[1772068055686,1.21118517,2065.8,2064.9,0.5561462]
[1772068055887,0.001,2065.8,2065.0,1.21065375]
[1772068056391,0.001,2065.8,2065.0,2.92381347]
[1772068056588,0.001,2065.8,2065.0,1.21065375]
[1772068056984,0.001,2065.8,2065.4,2.26930592]
[1772068057183,0.002,2066.1,2065.6,1.71315972]
[1772068057387,0.002,2066.3,2065.9,0.5561462]
[1772068057623,0.002,2066.3,2065.8,1.71315972]
[1772068057624,0.002,2066.9,2065.8,1.71315972]
[1772068057625,0.57364243,2067.7,2066.3,0.5561462]
[1772068057790,1.78292576,2067.4,2066.1,15.4]
[1772068057990,1.78292576,2067.4,2066.0,1.76618844]
[1772068057991,1.20930682,2067.3,2066.0,1.76618844]
[1772068058212,0.57564243,2067.2,2066.0,1.76618844]
[1772068058725,0.002,2067.2,2066.7,0.5561462]
[1772068058894,1.20881507,2068.2,2067.0,1.71315972]
[1772068059090,2.13264243,2068.3,2067.2,1.71315972]
[1772068059292,3.34136463,2068.3,2067.2,1.71315972]
[1772068059598,3.74114607,2068.6,2067.4,1.71315972]
[1772068059797,4.3147885,2068.6,2067.4,1.71315972]
[1772068060117,0.57364243,2068.5,2067.6,1.71315972]
[1772068060287,0.57364243,2068.8,2067.8,1.71315972]
[1772068060487,2.28680215,2068.8,2067.5,3.47849576]
[1772068060709,0.57364243,2068.7,2067.5,3.47849576]
[1772068060916,0.57364243,2068.7,2067.7,1.71315972]
[1772068061395,1.71315972,2068.4,2067.5,1.20918984]
[1772068061703,0.57364243,2068.3,2067.4,1.589]
[1772068062089,1.20878058,2068.2,2067.4,1.589]
[1772068062287,1.78237377,2068.3,2067.1,0.5561462]
[1772068062494,0.57364243,2068.1,2066.9,4.83810946]
[1772068062694,0.57364243,2068.1,2066.8,2.92270057]
[1772068062695,1.71315972,2068.0,2066.8,1.20957399]
[1772068063003,0.57364243,2067.7,2066.7,1.588]
[1772068063202,1.71315972,2067.6,2066.7,1.588]
[1772068063397,1.71315972,2067.6,2066.2,4.92154468]
[1772068063398,0.57364243,2067.3,2066.1,1.21000919]
[1772068063611,0.57364243,2067.3,2066.2,1.71315972]
[1772068063819,1.71315972,2067.6,2066.4,1.71315972]
[1772068063820,1.56,2067.6,2066.4,1.71315972]
[1772068064118,1.56,2067.6,2066.6,1.71315972]
[1772068064621,2.76914461,2067.6,2066.6,1.71315972]
[1772068064923,2.76913365,2067.6,2066.6,1.71315972]
[1772068065421,1.20914275,2067.6,2066.6,1.71315972]
[1772068065619,1.20914275,2067.6,2066.5,1.20977498]
[1772068065789,3.74154903,2067.9,2066.8,1.71315972]
[1772068066415,0.57564243,2068.0,2067.0,1.71315972]
[1772068066612,0.57564243,2068.0,2067.2,1.71315972]
[1772068066613,0.002,2068.0,2067.2,1.71315972]
[1772068066818,0.002,2068.0,2067.0,0.5561462]
[1772068066998,2.53256421,2069.6,2068.0,2.55771154]
[1772068067199,1.20834998,2069.0,2068.4,1.71315972]
[1772068067506,0.57364243,2069.3,2068.4,1.71315972]
[1772068067706,0.57364243,2069.3,2068.8,1.71315972]
[1772068068023,0.57364243,2069.3,2068.5,1.71315972]
[1772068068520,0.57364243,2069.3,2068.6,1.20854684]
[1772068068892,0.57364243,2069.4,2068.5,1.20856587]
[1772068069322,0.57364243,2069.4,2068.5,2.92172559]
[1772068070122,0.57364243,2069.5,2068.4,1.71315972]
[1772068070509,1.20807963,2069.4,2068.5,1.19702997]
[1772068070828,0.57364243,2069.3,2068.5,1.19702997]
[1772068071522,0.57364243,2069.3,2068.3,1.20867685]
[1772068071836,0.57364243,2069.3,2068.4,1.71315972]
[1772068072146,0.57364243,2069.3,2068.3,2.92183657]
[1772068072616,1.78160532,2069.6,2068.7,1.20848842]
[1772068073213,0.57364243,2069.5,2068.7,1.20848842]
[1772068073733,1.78166369,2069.5,2068.7,1.20848842]
[1772068074235,0.57364243,2069.4,2068.3,0.08192]
[1772068074537,0.57364243,2069.4,2068.4,1.71315972]
[1772068075210,1.78178044,2069.3,2068.5,1.20860526]
[1772068075816,0.57364243,2069.3,2068.5,1.20860526]
[1772068077241,1.78181286,2069.3,2068.5,1.20860526]
[1772068077734,1.78178595,2069.3,2068.5,1.20860526]
[1772068078336,1.78178207,2069.3,2068.6,1.71315972]
[1772068078508,1.78178207,2069.3,2068.7,0.001]
[1772068078837,0.002,2069.2,2068.7,0.001]
[1772068079549,0.52886048,2070.3,2069.1,2.07942253]
[1772068079846,0.52886048,2069.8,2068.7,0.001]
[1772068080003,0.52886048,2069.6,2068.7,1.71415972]
[1772068080209,0.52886048,2069.6,2068.9,1.71315972]
[1772068080408,0.53086048,2069.5,2068.7,0.001]
[1772068081452,0.53086048,2069.5,2068.7,1.71415972]
[1772068081638,0.53086048,2069.5,2068.8,1.20843]
[1772068081840,1.73889999,2069.5,2068.8,1.20843]
[1772068082025,1.7388823,2069.5,2068.8,1.20843]
[1772068082222,1.73888641,2069.5,2068.8,1.20843]
[1772068082426,0.52886048,2069.4,2068.7,0.001]
[1772068082624,0.52886048,2069.2,2068.7,0.001]
[1772068082829,0.52886048,2069.0,2068.0,2.92205258]
[1772068083133,0.52886048,2069.0,2068.0,1.71315972]
[1772068083455,0.52886048,2068.8,2068.0,1.71315972]
[1772068083656,1.20848842,2068.7,2067.8,1.71315972]
[1772068083954,0.001,2068.7,2068.0,2.92205298]
[1772068084267,0.001,2068.7,2067.5,5.15540133]
[1772068084268,0.001,2068.6,2067.7,1.29099069]
[1772068084423,0.52886048,2068.2,2067.0,1.588]
[1772068084623,0.52886048,2068.2,2067.3,1.71315972]
[1772068085067,0.52886048,2068.0,2067.1,1.71315972]
[1772068085223,0.52886048,2068.0,2066.7,15.4]
[1772068085425,0.52886048,2067.8,2066.8,1.71315972]
[1772068085632,1.20907288,2067.7,2066.8,1.20959938]
[1772068085840,1.20907288,2067.7,2066.2,1.71315972]
[1772068085841,0.52886048,2067.4,2066.2,1.71315972]
[1772068086057,0.52886048,2067.4,2066.6,1.71315972]
[1772068086356,0.001,2067.3,2066.8,1.71315972]
[1772068086550,0.001,2067.3,2066.6,1.71315972]
[1772068086752,0.001,2067.2,2066.6,1.71315972]
[1772068086965,0.001,2067.2,2066.4,1.71315972]
[1772068087142,0.001,2067.1,2066.2,1.71315972]
[1772068087339,0.52986048,2067.3,2066.2,1.71315972]
[1772068087535,0.52886048,2067.1,2066.1,1.71315972]
[1772068087842,0.52886048,2067.1,2066.1,2.92313836]
[1772068088046,1.21036532,2067.2,2066.0,6.43010717]
[1772068088047,0.52986048,2067.0,2066.0,2.80004081]
[1772068088224,0.52886048,2066.8,2065.8,1.21015184]
[1772068088886,0.001,2067.0,2065.6,1.2102568]
[1772068088887,0.52886048,2066.6,2065.6,1.2102568]
[1772068089183,0.001,2066.9,2066.1,1.71315972]
[1772068089357,0.52886048,2067.0,2066.1,1.71315972]
[1772068089556,0.001,2066.9,2066.1,1.21000919]
[1772068089960,0.001,2066.9,2066.4,1.71315972]
[1772068090249,2.77533654,2067.3,2066.4,1.71315972]
[1772068090250,1.20936532,2067.2,2066.4,1.71315972]
[1772068090676,1.20936532,2067.2,2066.2,1.71315972]
[1772068090950,0.001,2067.1,2066.2,1.71315972]
[1772068091365,0.52986048,2067.1,2065.9,1.596]
[1772068091543,0.52886048,2066.9,2066.0,1.21102357]
[1772068091748,0.52886048,2066.8,2066.0,1.21102357]
[1772068091950,0.52886048,2066.6,2066.0,0.001]
[1772068092976,0.52886048,2066.4,2065.8,0.001]
[1772068093694,0.001,2066.3,2065.8,1.71415972]
[1772068093846,0.52886048,2066.8,2066.0,1.71315972]
[1772068094046,0.001,2066.7,2066.0,1.71315972]
[1772068094272,0.001,2066.7,2066.2,1.71315972]
[1772068094446,1.563,2067.1,2066.2,1.71315972]
[1772068094645,0.001,2067.0,2066.2,1.71315972]
[1772068095667,0.001,2067.0,2066.6,1.71315972]
[1772068096247,0.001,2067.0,2066.4,1.71315972]
[1772068096783,0.52886048,2067.5,2066.8,1.71315972]
[1772068096954,0.001,2067.3,2066.6,1.71315972]
[1772068097463,0.001,2067.3,2066.8,1.71315972]
[1772068097668,0.001,2067.3,2066.9,1.20954085]
[1772068098757,0.001,2067.2,2066.7,1.71315972]
[1772068098964,0.52986048,2067.4,2066.6,1.20971644]
[1772068099679,0.001,2067.4,2066.7,1.71315972]
[1772068099975,0.001,2067.4,2066.8,1.20959938]
[1772068100399,0.001,2067.4,2066.9,1.71315972]
[1772068101784,0.001,2067.4,2066.3,4.83954668]
[1772068101785,0.52986048,2067.4,2066.3,4.83954668]
[1772068101985,0.52986048,2067.4,2066.7,1.71315972]
[1772068101986,0.001,2067.4,2066.7,1.71315972]
[1772068102284,1.21025032,2067.4,2066.5,1.71315972]
[1772068102450,0.52986048,2067.4,2066.5,1.71315972]
[1772068102954,1.73911357,2067.4,2066.5,1.71315972]
[1772068103591,1.21025309,2067.4,2066.5,1.71315972]
[1772068103761,1.21025309,2067.4,2066.6,1.20971644]
[1772068103962,0.52986048,2067.3,2066.5,1.20974195]
[1772068104184,0.52986048,2067.3,2066.4,2.79879266]
[1772068104381,0.52886048,2067.1,2066.2,0.001]
[1772068104790,0.52886048,2067.1,2066.2,1.21094641]
[1772068105459,0.003,2067.2,2066.2,1.21094964]
[1772068105460,0.52886048,2066.9,2066.2,1.21094964]
[1772068105911,0.52886048,2066.9,2066.2,0.001]
[1772068105912,0.52632849,2066.7,2066.2,0.001]
[1772068106194,0.52632849,2066.7,2066.0,1.21106712]
[1772068106369,0.52632849,2066.6,2066.0,0.001]
[1772068107391,0.001,2066.5,2066.0,1.21106654]
[1772068107901,1.73616201,2066.4,2066.0,0.001]
[1772068108067,0.001,2066.5,2066.0,0.001]
[1772068108971,0.001,2066.4,2066.0,0.001]
[1772068110097,1.73604493,2066.6,2066.0,0.001]
[1772068110296,0.001,2066.5,2066.0,0.001]
[1772068113467,0.001,2066.5,2066.0,2.39467424]
[1772068114074,0.001,2066.5,2066.1,1.21000919]
[1772068116107,0.001,2066.5,2066.0,0.001]
[1772068118495,0.001,2066.5,2066.3,0.001]
[1772068119084,0.003,2066.5,2066.3,0.001]
[1772068119992,0.002,2066.5,2066.3,0.001]
[1772068122356,0.002,2067.2,2066.6,2.39367424]
[1772068122645,0.002,2067.2,2066.7,1.579]
[1772068124457,0.002,2067.2,2066.8,1.20959938]
[1772068124757,0.51568472,2067.2,2066.5,1.579]
[1772068126147,0.002,2067.4,2066.5,1.579]
[1772068126537,0.002,2067.4,2066.6,1.20971644]
[1772068127029,0.51368472,2067.3,2066.3,0.001]
[1772068127238,0.51368472,2067.0,2066.3,2.7888784]
[1772068128968,1.72299362,2067.3,2066.3,2.7888784]
[1772068129459,0.51368472,2067.2,2066.3,2.7888784]
[1772068131044,0.51368472,2067.0,2066.3,2.7888784]
[1772068132161,0.51568472,2067.0,2066.3,2.7888784]
[1772068132325,0.51568472,2067.0,2066.3,1.2108784]
[1772068132951,0.51368472,2066.8,2066.3,0.001]
[1772068135625,0.51368472,2066.7,2066.3,0.001]
[1772068136370,0.505637,2067.0,2066.3,0.001]
[1772068138231,0.505637,2067.0,2066.3,1.576]
[1772068139737,0.505637,2067.0,2066.4,1.20983352]
[1772068140262,0.002,2067.0,2066.4,1.70481172]
[1772068140431,0.002,2067.0,2066.5,0.4949782]
[1772068140634,0.002,2067.0,2066.4,1.20983352]
[1772068141243,0.002,2067.0,2066.5,0.4949782]
[1772068141440,0.002,2067.4,2066.7,0.4949782]
[1772068141668,0.002,2067.4,2066.5,2.88865244]
[1772068141870,0.002,2067.4,2066.7,1.574]
[1772068141871,0.505637,2067.4,2066.7,1.574]
[1772068142772,0.505637,2067.4,2066.6,1.20971644]
[1772068143280,0.505637,2067.4,2066.3,1.21089018]
[1772068143281,0.503637,2066.9,2066.3,1.21089018]
[1772068143843,0.503637,2066.9,2066.3,0.001]
[1772068144049,0.503637,2067.2,2066.3,0.001]
[1772068144773,0.503637,2067.2,2066.5,0.001]
[1772068144948,0.002,2067.0,2066.5,0.001]
[1772068145475,0.002,2067.0,2066.5,0.4959782]
[1772068145775,0.002,2067.0,2066.6,1.20971644]
[1772068147674,0.002,2067.0,2066.5,0.001]
[1772068147675,0.505637,2067.0,2066.5,0.001]
[1772068147863,0.503637,2066.9,2066.5,0.001]
[1772068148043,0.002,2067.0,2066.5,0.001]
[1772068150594,0.002,2067.0,2066.5,1.578]
[1772068152354,0.002,2067.0,2066.6,1.20971644]
[1772068154385,0.002,2067.0,2066.6,1.70469464]
[1772068155497,0.002,2067.0,2066.6,1.20971644]
[1772068155665,0.002,2067.0,2066.5,4.83986576]
[1772068155666,0.505637,2067.0,2066.5,1.04544115]
[1772068155864,0.505637,2067.0,2066.5,2.25521527]
[1772068156585,0.505637,2067.0,2066.3,0.001]
[1772068156755,0.505637,2067.0,2066.7,0.001]
[1772068158459,1.71512072,2067.0,2066.7,0.001]
[1772068158667,0.503637,2066.9,2066.7,0.001]
[1772068159069,0.503637,2066.8,2066.5,0.001]
[1772068159279,0.503637,2066.8,2066.3,0.001]
[1772068159716,0.503637,2066.8,2066.0,1.21103742]
[1772068159880,0.503637,2066.8,2066.0,1.21105097]
[1772068160660,0.503637,2066.6,2066.0,1.21105097]
[1772068160953,0.503637,2066.6,2066.0,0.001]
[1772068162680,0.503637,2066.5,2066.0,0.001]
[1772068165290,1.71341267,2066.5,2066.0,0.001]
[1772068166290,0.51691277,2066.4,2065.8,0.001]
[1772068167389,1.20989207,2066.3,2065.8,0.001]
[1772068167687,1.72680484,2066.3,2065.8,0.001]
[1772068167903,0.51691277,2066.2,2065.8,0.001]
[1772068168825,1.20989207,2066.3,2064.7,0.51240889]
[1772068168826,0.51691277,2065.8,2064.7,0.51240889]
[1772068168971,2.59031218,2065.9,2064.7,0.51240889]
[1772068168972,0.51691277,2065.5,2064.7,1.72323414]
[1772068169318,0.51691277,2065.5,2064.5,0.001]
[1772068169601,0.51691277,2065.1,2064.5,0.001]
[1772068169958,0.51691277,2064.9,2064.5,0.001]
[1772068170178,0.51691277,2064.9,2064.3,0.001]
[1772068170467,1.509,2065.2,2064.3,1.72446424]
[1772068170683,0.51691277,2065.1,2064.3,0.001]
[1772068170889,2.91058701,2064.9,2064.3,0.001]
[1772068171863,1.21077101,2064.8,2064.3,0.001]
[1772068172996,1.509,2065.2,2064.3,0.51121563]
[1772068173565,1.509,2066.1,2064.8,0.51021563]
[1772068173764,1.509,2066.1,2065.1,0.51021563]
[1772068173959,2.71901013,2066.1,2065.3,0.51021563]
[1772068174187,2.71901013,2066.1,2065.2,1.2105365]
[1772068174188,0.51509675,2066.0,2065.0,0.51021563]
[1772068174396,0.51509675,2066.0,2065.0,5.35275028]
[1772068174565,5.11268437,2066.1,2065.1,0.51021563]
[1772068174765,0.51509675,2066.0,2065.1,0.51021563]
[1772068175274,2.22670138,2066.0,2065.1,0.51021563]
[1772068175590,1.71160463,2065.8,2065.1,0.51021563]
[1772068175887,1.2102435,2065.7,2065.0,1.21065375]
[1772068177978,2.22670138,2065.6,2064.7,1.21079401]
[1772068178166,1.71160463,2065.4,2064.6,3.28906854]
[1772068178364,1.71160463,2065.4,2064.6,2.07821563]
[1772068178581,2.22670138,2065.1,2064.3,1.21202716]
[1772068178780,0.51509675,2065.1,2064.3,1.21202716]
[1772068179175,0.51509675,2065.1,2064.3,0.001]
[1772068179404,0.51509675,2065.1,2064.3,1.21206]
[1772068179620,2.02709675,2065.1,2064.3,0.001]
[1772068179915,1.71160463,2065.0,2064.3,1.21204512]
[1772068180081,2.02709675,2065.1,2064.4,0.51021563]
[1772068180082,1.512,2065.1,2064.4,0.51021563]
[1772068181202,1.71160463,2064.8,2064.3,0.001]
[1772068181777,1.71160463,2064.8,2064.0,0.001]
[1772068181778,1.71160463,2064.6,2064.0,0.001]
[1772068181978,1.72597296,2064.7,2064.0,0.001]
[1772068182406,1.71160463,2064.6,2064.0,0.001]
[1772068182581,2.22670138,2064.6,2064.0,0.001]
[1772068183288,2.22670138,2064.6,2064.5,0.001]
[1772068183486,2.22670138,2064.6,2064.0,0.001]
[1772068183694,2.22670138,2064.6,2064.2,0.001]
[1772068184086,0.51509675,2064.3,2063.9,0.001]
[1772068184409,1.71160463,2064.1,2063.9,0.001]
[1772068184924,1.511,2064.3,2063.9,0.001]
[1772068185088,1.7260229,2064.6,2063.9,0.001]
[1772068185292,4.43447775,2064.7,2063.9,0.001]
[1772068185623,3.23785188,2064.9,2063.9,0.51121563]
[1772068185923,1.512,2064.9,2063.9,0.51121563]
[1772068186122,1.512,2064.9,2064.2,0.51021563]
[1772068186336,4.4343215,2064.9,2064.2,0.51021563]
[1772068186485,3.22360463,2064.9,2064.2,0.51021563]
[1772068186679,1.512,2064.9,2064.2,0.51021563]
[1772068186988,2.72271655,2064.9,2064.2,0.51021563]
[1772068187211,1.512,2064.9,2064.2,0.51021563]
[1772068188397,1.512,2064.9,2064.3,1.21106428]
[1772068188604,1.512,2064.9,2064.0,1.21124031]
[1772068188605,2.22670138,2064.7,2064.0,1.21124031]
[1772068188918,0.51509675,2064.7,2064.0,1.21124031]
[1772068189123,0.51509675,2064.7,2063.9,4.84599108]
[1772068189124,2.22670138,2064.6,2063.9,0.001]
[1772068189419,2.22670138,2064.4,2063.9,0.001]
[1772068190394,1.21106428,2064.3,2063.9,0.001]
[1772068190815,1.51,2064.4,2063.9,0.001]
[1772068191218,1.51,2064.4,2063.6,1.21246796]
[1772068191219,2.22670138,2064.2,2063.6,0.001]
[1772068191892,2.72100939,2064.4,2063.6,0.001]
[1772068192225,2.72101557,2064.4,2063.6,0.51121563]
[1772068192819,2.72103321,2064.4,2063.7,1.21141638]
[1772068193016,1.51,2064.4,2063.7,1.21141638]
[1772068193222,1.51,2064.4,2063.8,0.51021563]
[1772068193808,2.72100839,2064.4,2063.8,0.51021563]
[1772068194619,0.51509675,2064.2,2063.6,0.001]
[1772068194793,1.21118162,2064.1,2063.6,0.001]
[1772068195618,1.72625561,2064.2,2063.6,0.001]
[1772068195915,2.92271683,2064.3,2063.6,0.001]
[1772068196125,2.72104582,2064.4,2063.6,0.001]
[1772068197286,2.72104582,2064.4,2064.0,0.0011]
[1772068197733,2.72104582,2064.4,2063.6,0.001]
[1772068197734,1.71160463,2064.1,2063.6,0.001]
[1772068197929,0.49696092,2064.3,2063.6,0.001]
[1772068198094,0.001,2064.2,2063.6,0.001]
[1772068198424,2.20856555,2064.1,2063.8,0.0011]
[1772068198921,1.71160463,2063.9,2063.6,0.001]
[1772068199407,1.21135768,2063.8,2063.6,0.001]
[1772068201506,1.511,2064.0,2063.6,0.001]
[1772068201827,2.72224242,2064.0,2063.6,0.001]
[1772068202195,2.72224531,2064.0,2063.6,0.001]
[1772068204229,1.21124531,2064.0,2063.6,0.001]
[1772068204405,1.21122634,2064.1,2063.6,0.001]
[1772068206142,1.71160463,2063.7,2063.3,0.0011]
[1772068206299,1.21147509,2063.6,2063.3,0.0011]
[1772068206700,3.42004064,2063.6,2063.1,0.0011]
[1772068206926,3.42004064,2063.6,2062.6,0.52286687]
[1772068206927,1.71160463,2063.4,2062.6,0.52286687]
[1772068207230,3.22560463,2063.4,2062.6,0.52286687]
[1772068207827,3.72256555,2063.4,2062.6,0.52286687]
[1772068208236,9.98828065,2065.8,2062.7,0.52286687]
[1772068208237,3.08213163,2063.9,2062.7,0.52286687]
[1772068208395,3.08213163,2063.9,2062.6,1.21205996]
[1772068208396,2.72435768,2063.8,2062.9,0.52286687]
[1772068208600,4.43596231,2063.8,2062.9,0.52286687]
[1772068208803,0.49696092,2063.5,2062.6,1.7349173]
[1772068209112,3.2213186,2063.8,2062.7,0.52286687]
[1772068209306,1.21133406,2063.9,2063.0,1.71160463]
[1772068209516,1.21133406,2063.9,2063.1,0.52286687]
[1772068209722,1.514,2064.0,2063.1,0.52396687]
[1772068209936,1.514,2064.0,2063.3,0.52286687]
[1772068210145,0.001,2063.9,2063.5,0.52286687]
[1772068210324,0.001,2063.9,2063.7,0.52286687]
[1772068211030,0.001,2063.9,2063.5,4.84590036]
[1772068211031,0.001,2063.9,2063.5,1.21149989]
[1772068211328,0.001,2063.9,2063.5,1.73436676]
[1772068213419,0.001,2063.9,2063.5,0.52286687]
[1772068214135,0.001,2063.9,2063.5,1.7343874]
[1772068214349,0.001,2064.2,2063.5,1.7343874]
[1772068214350,0.001,2064.2,2063.6,0.52286687]
[1772068214525,0.001,2064.2,2063.6,1.7343025]
[1772068215435,0.001,2064.2,2063.6,1.73432452]
[1772068215632,2.20956555,2064.2,2063.3,2.07586687]
[1772068215825,2.20956555,2064.2,2063.3,3.28750819]
[1772068216025,0.49696092,2064.1,2063.1,0.0011]
[1772068216227,2.20856555,2064.0,2063.1,0.0011]
[1772068216534,1.21129899,2063.9,2063.1,0.52396687]
[1772068218434,4.84552222,2064.2,2063.4,0.52286687]
[1772068218435,1.21215823,2064.2,2063.4,0.52286687]
[1772068218708,0.001,2064.2,2063.5,1.2115338]
[1772068219715,0.001,2064.2,2063.5,1.73440067]
[1772068220145,0.001,2064.2,2063.9,0.52286687]
[1772068220447,4.84309054,2064.8,2063.9,0.52286687]
[1772068220831,2.72174908,2064.9,2064.1,0.52286687]
[1772068221212,2.72174908,2064.9,2063.8,0.52286687]
[1772068221427,2.72174908,2064.9,2064.0,0.52286687]
[1772068222817,2.20856555,2064.3,2063.7,0.0011]
[1772068223028,0.49696092,2064.3,2063.7,0.0011]
[1772068223742,1.71160463,2064.2,2063.7,0.0011]
[1772068223940,1.51,2064.4,2063.5,0.0011]
[1772068223941,2.20856555,2064.0,2063.5,0.0011]
[1772068224924,2.72129899,2063.9,2063.5,0.0011]
[1772068225241,1.71160463,2063.8,2063.2,0.0011]
[1772068225412,0.49696092,2063.8,2063.2,0.0011]
[1772068226242,2.72129899,2063.9,2063.2,0.5171591]
[1772068227330,4.84462391,2064.2,2063.3,0.5160591]
[1772068228116,1.509,2064.3,2063.5,0.5160591]
[1772068229548,2.72006894,2064.3,2063.7,0.5160591]
[1772068229738,1.509,2064.3,2063.7,0.5160591]
[1772068230856,0.48758878,2064.6,2063.7,0.5160591]
[1772068230857,1.21093571,2064.6,2063.7,0.5160591]
[1772068231535,1.21093571,2064.6,2063.9,0.5160591]
[1772068232631,2.71783263,2064.7,2063.9,0.5160591]
[1772068232837,1.507,2064.7,2063.9,0.5160591]
[1772068233041,2.7178323,2064.7,2063.9,0.5160591]
[1772068233728,2.7178323,2064.7,2064.0,1.69978381]
[1772068233928,2.7178411,2064.7,2064.0,1.69978381]
[1772068234157,2.7178411,2064.7,2064.0,0.4885435]
[1772068234659,0.001,2064.4,2064.0,0.4885435]
[1772068236564,0.001,2064.4,2064.1,1.21118162]
[1772068237665,0.001,2064.4,2064.0,1.69974301]
[1772068241031,0.001,2064.4,2064.1,0.4885435]
[1772068242652,0.001,2064.4,2064.1,1.69970309]
[1772068243248,0.001,2064.4,2064.1,1.21115959]
[1772068243459,0.001,2064.4,2063.9,4.84508608]
[1772068243752,0.001,2064.4,2063.9,5.33362958]
[1772068245464,0.001,2064.4,2063.7,2.75248288]
[1772068245687,0.52009728,2064.4,2063.7,0.0011]
[1772068246545,0.001,2064.2,2063.7,0.0011]
[1772068246882,0.52009728,2064.2,2063.7,0.0011]
[1772068247936,0.51909728,2064.1,2063.7,0.0011]
[1772068248963,1.21124031,2064.0,2063.7,0.0011]
[1772068249145,0.51909728,2063.9,2063.5,0.0011]
[1772068250168,0.51909728,2063.9,2063.2,0.0011]
[1772068250679,1.21124031,2064.0,2063.3,0.4885435]
[1772068250972,4.84496124,2064.1,2063.4,0.4885435]
[1772068251554,1.494,2064.2,2063.4,0.4885435]
[1772068251755,2.70516936,2064.2,2063.4,0.4885435]
[1772068252445,3.22426664,2064.2,2063.4,0.4885435]
[1772068253064,3.22426664,2064.2,2063.4,1.70009443]
[1772068253449,0.51909728,2064.1,2063.4,0.4885435]
[1772068253876,0.51909728,2064.1,2063.4,1.70013451]
[1772068254177,0.51909728,2064.1,2063.4,0.4885435]
[1772068254775,0.51909728,2064.1,2063.4,1.70013015]
[1772068255378,1.21124031,2064.0,2063.5,0.4885435]
[1772068256187,1.21216783,2064.2,2063.5,0.4885435]
[1772068257460,0.49918378,2064.1,2063.2,0.52505603]
[1772068257662,0.49918378,2064.1,2063.2,1.7367493]
[1772068258177,0.49918378,2064.1,2063.6,0.0011]
[1772068258561,0.50018378,2063.9,2063.6,0.0011]
[1772068258758,0.001,2063.9,2063.6,0.0011]
[1772068262469,0.50018378,2063.9,2063.6,0.0011]
[1772068263261,0.50018378,2063.9,2063.4,0.0011]
[1772068263583,0.50018378,2063.9,2063.2,0.0011]
[1772068263584,0.49918378,2063.7,2063.2,0.0011]
[1772068264156,2.70736362,2063.8,2063.2,0.52505603]
[1772068264569,1.496,2063.8,2063.2,0.52505603]
[1772068264966,1.496,2063.8,2063.3,0.52395603]
[1772068265165,0.001,2063.9,2063.3,0.52395603]
[1772068265577,4.84504931,2064.4,2063.9,0.52395603]
[1772068265578,0.001,2064.4,2063.9,0.52395603]
[1772068266267,0.001,2064.4,2063.7,1.53]
[1772068266268,0.001,2064.4,2064.0,1.73519634]
[1772068266889,0.49918378,2064.3,2063.7,1.53]
[1772068267075,0.002,2064.4,2063.7,2.74140706]
[1772068267383,0.002,2064.4,2063.8,0.52395603]
[1772068268365,1.21300561,2064.4,2063.8,0.52395603]
[1772068270095,1.21200561,2064.4,2063.8,0.52395603]
[1772068270390,1.71130673,2064.2,2063.4,1.73664431]
[1772068271082,0.50018378,2064.1,2063.4,0.52505603]
[1772068271402,0.001,2064.1,2063.5,0.52395603]
[1772068272503,0.001,2064.2,2063.2,0.0011]
[1772068272504,2.39849535,2063.8,2063.2,0.0011]
[1772068272709,0.49918378,2063.7,2062.6,0.0011]
[1772068273202,0.49918378,2063.7,2062.6,1.73711269]
[1772068273498,0.49918378,2063.7,2062.7,0.52395603]
[1772068275093,0.49918378,2063.7,2062.8,0.52395603]
[1772068275094,1.71065887,2063.6,2062.8,0.52395603]
[1772068275296,1.21147509,2063.6,2062.8,0.52395603]
[1772068275991,4.84590036,2063.7,2062.8,0.52395603]
[1772068275992,2.70745676,2063.7,2062.8,0.52395603]
[1772068277285,1.71058846,2063.8,2063.0,0.52395603]
[1772068277601,1.21132666,2063.9,2063.1,0.52395603]
[1772068277974,1.496,2064.0,2063.1,0.52395603]
[1772068278174,2.70728494,2064.0,2063.1,0.52395603]